Cogmind - Beta 14 *** ADVENTURER MODE // 2025.03.15 @ 13:08:09 Player: varrok Result: Self-destructed Performance ------------- Evolutions (2) 1000 Regions Visited (5) 1000 Robots Destroyed (49) 245 Value Destroyed (1443) 1443 Prototype IDs (1) 20 Alien Tech Used (0) 0 Bonus (151) 151 TOTAL SCORE: 3859 Bonus ------- High Alert Combat Kills 151 Cogmind --------- Core Integrity 270/550 Matter 300/300 Energy 240/240 System Corruption 1% Temperature Cool (0) Movement Treading (240) Ox1 Location -8/Materials Parts ------- > --- POWER (1) -------- Nuclear Core > --- PROPULSION (4) --- Light Treads > --- UTILITY (4) ------ Small Storage Unit Improved Targeting Computer Actuator Array Improved Power Shielding > --- WEAPON (2) ------- Precision Beam Rifle > --- INVENTORY (8) ---- Compact Battery (200) High-capacity Matter Pod (200) Medium Armor Plating Heavy Laser Explosive Trap Explosive Trap Explosive Trap Peak State ------------ > --- POWER ------------ Light Nuclear Core > --- PROPULSION ------- Light Treads Aluminum Leg Aluminum Leg Titanium Leg > --- UTILITY ---------- Small Storage Unit Improved Targeting Computer Actuator Array Improved Power Shielding > --- WEAPON ----------- Precision Beam Rifle Improved Grenade Launcher > --- INVENTORY -------- Compact Battery High-capacity Matter Pod Medium Armor Plating Heavy Laser Heavy Assault Rifle Explosive Trap Explosive Trap Explosive Trap [Rating: 26] Favorites ----------- Power Light Ion Engine Engine Light Ion Engine Power Core Light Nuclear Core Propulsion Aluminum Leg Treads Light Treads Leg Aluminum Leg Utility Small Storage Unit Device Actuator Array Storage Small Storage Unit Processor Improved Targeting Computer Protection Core Shielding Weapon Particle Gun Energy Gun Particle Gun Ballistic Gun Heavy Assault Rifle Launcher Grenade Launcher Build | -11 -10 -10 -10 -9 -8 ------- Run | Yrd Mat Min Exi Min Mat Slots Evolved 4 | . . . . . 4 Power . | . . . . . . Propulsion 2 | . . . . . 2 Utility 2 | . . . . . 2 Weapon . | . . . . . . Parts Attached 47 | 5 4 . 3 4 31 Power 4 | 1 . . . . 3 Engine 1 | 1 . . . . . Core 3 | . . . . . 3 Reactor . | . . . . . . Propulsion 12 | 2 . . . . 10 Treads 1 | . . . . . 1 Leg 11 | 2 . . . . 9 Wheel . | . . . . . . Hover . | . . . . . . Flight . | . . . . . . Utility 11 | . 2 . 3 1 5 Device 3 | . . . . . 3 Storage 4 | . 1 . 3 . . Processor 1 | . . . . . 1 Hackware . | . . . . . . Protection 3 | . 1 . . 1 1 Artifact . | . . . . . . Weapon 20 | 2 2 . . 3 13 Energy Gun 6 | 1 1 . . 1 3 Energy Cannon . | . . . . . . Ballistic Gun 7 | 1 . . . . 6 Ballistic Cannon . | . . . . . . Launcher 7 | . 1 . . 2 4 Special Weapon . | . . . . . . Impact Weapon . | . . . . . . Slashing Weapon . | . . . . . . Piercing Weapon . | . . . . . . Special Melee Weapon . | . . . . . . Unidentified Prototypes 1 | . . . . . 1 Parts Lost 13 | . . . . . 13 Power 1 | . . . . . 1 Propulsion 7 | . . . . . 7 Utility 2 | . . . . . 2 Weapon 3 | . . . . . 3 Highest Loss Streak 5 | . . . . . 5 To Critical Strikes 1 | . . . . . 1 Average Slot Usage (%) 93 | . 90 100 100 100 87 Engine 8 | . 14 14 14 14 1 Core 3 | . . . . . 7 Treads 1 | . . . . . 4 Leg 25 | . 28 28 28 28 23 Device 4 | . . . . . 9 Storage 11 | . 9 14 14 14 9 Processor 3 | . . . . . 7 Protection 10 | . 9 14 14 14 7 Energy Gun 11 | . 10 14 14 14 9 Ballistic Gun 2 | . 4 . . . 6 Launcher 8 | . 13 14 14 13 2 Peak Build Rating 26 | 5 8 8 8 10 26 Average Rating 13 | 3 6 8 8 8 21 On Entrance 6 | . 5 8 8 8 10 Naked Turns . | . . . . . . Heaviest Build 27 | 6 14 14 15 20 27 Greatest Support 43 | 20 20 20 20 20 43 Greatest Overweight (x) 2 | . . . . . 2 Average Overweight (x) . | . . . . . . Largest Inventory Capacity 20 | 5 5 5 20 8 8 Average Capacity 7 | 5 5 5 5 8 8 Most Carried 8 | 3 5 4 5 8 8 Average Carried 6 | . 2 3 4 6 7 Final Capacity 8 | 5 5 5 8 8 8 Final Carried 8 | 1 3 4 5 8 7 Class Distribution -------------------- 81% | Mutant 18% | Scavenger-Mutant Dominant Class ---------------- Mutant | -10/Materials Mutant | -10/Mines Mutant | -10/Exiles Mutant | -9/Mines Mutant | -8/Materials Resources | -11 -10 -10 -10 -9 -8 ----------- Run | Yrd Mat Min Exi Min Mat Matter Collected 1229 | 253 38 . . 143 795 Remotely . | . . . . . . Salvage Created 1439 | 40 71 . . 75 1253 Parts 91 | . 7 . . 2 82 Haulers Intercepted 1 | . . . . . 1 Recyclers Shooed . | . . . . . . Parts Field Recycled . | . . . . . . Retrieved Matter . | . . . . . . Parts Self-Destructed . | . . . . . . Prevented . | . . . . . . Kills | -11 -10 -10 -10 -9 -8 ------- Run | Yrd Mat Min Exi Min Mat Combat Hostiles Destroyed 42 | 1 2 . . 2 37 Guns 24 | 1 . . . 1 22 AOE 17 | . 2 . . 1 14 Classes Destroyed 7 | 1 1 . . . 5 Worker 3 | . 1 . . . 2 Tunneler 1 | . . . . . 1 Hauler 1 | . . . . . 1 Watcher 2 | . . . . . 2 Swarmer 16 | . . . . . 16 Grunt 20 | 1 2 . . 2 15 Sentry 6 | . . . . . 6 Best Kill Streak 7 | 1 3 . . 2 7 Combat Bots Only 5 | 1 2 . . 2 5 Max Kills in Single Turn 3 | 1 1 . . 1 3 Gunslinging . | . . . . . . Exploded 3 | . 1 . . 1 3 Melee . | . . . . . . Uniques/NPCs Destroyed . | . . . . . . Combat | -11 -10 -10 -10 -9 -8 -------- Run | Yrd Mat Min Exi Min Mat Hostile Shots Fired 245 | 5 11 . . 4 225 Missed 62 | 2 4 . . . 56 Damage Taken 1998 | 25 84 . . 53 1836 Core 324 | 9 23 . . 12 280 Absorbed by Shields . | . . . . . . Redirected to Shielding 31 | . . . . 2 29 Ignored by Resistances 591 | 8 24 . . 15 544 Regen/Repaired (Parts) 78 | . . . . . 78 Core Remaining (%) 89 | 96 . . . 82 . Volleys Fired 112 | 3 8 . . 3 98 Largest 2 | 2 2 . . 2 2 Hottest 102 | 70 50 . . 95 102 Shots Fired 190 | 6 11 . . 5 168 Gun 167 | 6 8 . . 3 150 Cannon . | . . . . . . Launcher 23 | . 3 . . 2 18 Special . | . . . . . . Kinetic 64 | 3 8 . . . 53 Thermal 103 | 3 . . . 3 97 Explosive 23 | . 3 . . 2 18 Electromagnetic . | . . . . . . Robot Hit Streak 23 | 2 7 . . 2 23 Robot Miss Streak 2 | 1 1 . . 1 2 Penetration Max . | . . . . . . Secondary Targets 1 | . . . . . 1 Max Gunslinging Chain 1 | . . . . . 1 Shots Hit Robots 150 | 4 10 . . 3 133 Core Hits 82 | 2 6 . . 4 70 Critical Kills . | . . . . . . Critical Parts Destroyed . | . . . . . . Critical Strikes 11 | 1 . . . . 10 Burn 11 | 1 . . . . 10 Melee Attacks . | . . . . . . Impact . | . . . . . . Slashing . | . . . . . . Piercing . | . . . . . . Sneak Attacks . | . . . . . . Combat Hostiles . | . . . . . . Follow-up Attacks . | . . . . . . Damage Inflicted 3486 | 42 204 . . 108 3132 Guns 2091 | 42 62 . . 14 1973 Cannons . | . . . . . . Explosions 1395 | . 142 . . 94 1159 Melee . | . . . . . . Ramming . | . . . . . . Kinetic 676 | 17 62 . . . 597 Thermal 1415 | 25 . . . 14 1376 Explosive 1395 | . 142 . . 94 1159 Electromagnetic . | . . . . . . Impact . | . . . . . . Slashing . | . . . . . . Piercing . | . . . . . . Highest Corruption 1 | . . . . . 1 Average Corruption 1 | . . . . . 1 Corruption Purged . | . . . . . . Corruption Blocked . | . . . . . . Effects 7 | . . . . . 7 Matter Fused 1 | . . . . . 1 Heat Flow Errors 3 | . . . . . 3 Data Loss (minor) 1 | . . . . . 1 Data Loss (major) 1 | . . . . . 1 Alerts 1 | . . . . . 1 Overload Shots . | . . . . . . Overflow Damage 25 | . . . . . 25 Projectiles . | . . . . . . Explosions 25 | . . . . . 25 Melee . | . . . . . . Knockbacks . | . . . . . . Impact . | . . . . . . Kinetic . | . . . . . . Secondary . | . . . . . . Self-Inflicted Damage 154 | . . . . . 154 Shots 7 | . . . . . 7 Rammed . | . . . . . . Targets Rammed . | . . . . . . Kicked . | . . . . . . Crushed . | . . . . . . Highest Temperature 288 | 50 19 . . 126 288 Average Temperature 78 | 28 11 . . 69 81 Received Heat Transfer 909 | 18 63 . . 54 774 Effects 1 | . . . . . 1 Interference 1 | . . . . . 1 Siege Activations . | . . . . . . Robots Corrupted . | . . . . . . Combat Hostiles . | . . . . . . Parts Fried . | . . . . . . Impact Corruptions . | . . . . . . Robots Melted 1 | . . . . . 1 Combat Hostiles 1 | . . . . . 1 Parts Melted 6 | 2 . . . . 4 Heat Transferred 3885 | 148 . . . 37 3700 Parts Sabotaged . | . . . . . . Parts Stolen . | . . . . . . Parts Stripped . | . . . . . . Power Chain Reactions 1 | . . . . . 1 Alert | -11 -10 -10 -10 -9 -8 ------- Run | Yrd Mat Min Exi Min Mat Peak Influence 795 | 20 76 24 . 63 795 Initial 24 | . 11 24 . . . Average 220 | 6 65 24 . 15 412 Maximum Alert Level 3 | . . . . . 3 Low Security (%) 56 | 100 100 100 . 100 13 Level 1 18 | . . . . . 37 Level 2 24 | . . . . . 48 Level 3 . | . . . . . . Level 4 . | . . . . . . Level 5 . | . . . . . . High Security . | . . . . . . Max Security . | . . . . . . Squads Dispatched 4 | . . . . . 4 Investigation . | . . . . . . Extermination . | . . . . . . Reinforcement 3 | . . . . . 3 Assault . | . . . . . . Garrison 1 | . . . . . 1 Intercept . | . . . . . . Searches Triggered . | . . . . . . Construction Impeded 1 | . . . . . 1 Haulers Reinforced . | . . . . . . Active Scanning Responses . | . . . . . . Cargo Convoy Interrupts . | . . . . . . Stealth | -11 -10 -10 -10 -9 -8 --------- Run | Yrd Mat Min Exi Min Mat Distress Signals 4 | . 1 . . . 3 Communications Jammed . | . . . . . . Distress Signals . | . . . . . . Times Spotted 57 | 1 3 . . 2 51 Peak Tracking Total 6 | 1 3 . . 2 6 Tactical Retreats 7 | . . . . . 7 Traps | -11 -10 -10 -10 -9 -8 ------- Run | Yrd Mat Min Exi Min Mat Traps Triggered 2 | . . . . . 2 Indirectly . | . . . . . . Trap Hack Attempts . | . . . . . . Triggered . | . . . . . . Disarmed . | . . . . . . Reprogrammed . | . . . . . . Reused . | . . . . . . Traps Extracted . | . . . . . . Installed . | . . . . . . Triggered . | . . . . . . Most Traps Carried 3 | . . . . 3 3 Machines | -11 -10 -10 -10 -9 -8 ---------- Run | Yrd Mat Min Exi Min Mat Machines Disabled 5 | . . . . . 5 Max in Single Turn 2 | . . . . . 2 Machines Repaired . | . . . . . . Machines Dismantled . | . . . . . . Machines Sabotaged . | . . . . . . Overloaded Fab Kills . | . . . . . . Hacking | -11 -10 -10 -10 -9 -8 --------- Run | Yrd Mat Min Exi Min Mat Machines Accessed 6 | . . . 3 . 3 Terminals 1 | . . . . . 1 Fabricators . | . . . . . . Repair Stations 1 | . . . . . 1 Recycling Units . | . . . . . . Scanalyzers . | . . . . . . Garrison Access 1 | . . . . . 1 Total Hacks 17 | . . . 10 . 7 Successful 14 | . . . 10 . 4 Failed 3 | . . . . . 3 Catastrophic . | . . . . . . Database Lockouts . | . . . . . . Manual . | . . . . . . Terminals 3 | . . . . . 3 Fabricators . | . . . . . . Repair Stations 2 | . . . . . 2 Recycling Units . | . . . . . . Scanalyzers . | . . . . . . Garrison Access 2 | . . . . . 2 Terminal Hacks 12 | . . . 10 . 2 Record 10 | . . . 10 . . Dispatch Records 1 | . . . . . 1 Zone Layout 1 | . . . . . 1 Fabricator Hacks . | . . . . . . Repair Station Hacks 2 | . . . . . 2 Scan Component 1 | . . . . . 1 Repair 1 | . . . . . 1 Recycling Unit Hacks . | . . . . . . Scanalyzer . | . . . . . . Garrison Access Hacks . | . . . . . . Unauthorized Hacks . | . . . . . . Terminals . | . . . . . . Fabricators . | . . . . . . Repair Stations . | . . . . . . Recycling Units . | . . . . . . Scanalyzers . | . . . . . . Garrison Access . | . . . . . . Data Cores Recovered . | . . . . . . Used . | . . . . . . Hacking Detections . | . . . . . . Full Trace Events . | . . . . . . Feedback Events . | . . . . . . Feedback Blocked . | . . . . . . Robot Schematics Acquired . | . . . . . . Robots Built . | . . . . . . Authchips . | . . . . . . Time . | . . . . . . Total Robot Build Rating . | . . . . . . Part Schematics Acquired . | . . . . . . Parts Built . | . . . . . . Authchips . | . . . . . . Time . | . . . . . . Total Part Build Rating . | . . . . . . Parts Repaired 1 | . . . . . 1 Time 26 | . . . . . 26 Parts Recycled . | . . . . . . Recycled Matter . | . . . . . . Retrieved Matter . | . . . . . . Retrieved Components . | . . . . . . Parts Scanalyzed . | . . . . . . Part Schematics Acquired . | . . . . . . Parts Damaged . | . . . . . . Bothacking | -11 -10 -10 -10 -9 -8 ------------ Run | Yrd Mat Min Exi Min Mat Used RIF Installer . | . . . . . . Robots Hacked . | . . . . . . Non-combat . | . . . . . . Combat . | . . . . . . Robot Hacks Applied . | . . . . . . Relay Couplers Released . | . . . . . . Fabnet Peak Effective % . | . . . . . . Robots Rewired . | . . . . . . Allies Hacked . | . . . . . . Hacks Repelled . | . . . . . . Allies | -11 -10 -10 -10 -9 -8 -------- Run | Yrd Mat Min Exi Min Mat Total Allies . | . . . . . . Largest Group . | . . . . . . Highest-Rated Group . | . . . . . . Highest-Rated Ally . | . . . . . . Total Orders . | . . . . . . Ally Attacks . | . . . . . . Total Damage . | . . . . . . Kills . | . . . . . . Allies Corrupted . | . . . . . . Allies Melted . | . . . . . . Intel | -11 -10 -10 -10 -9 -8 ------- Run | Yrd Mat Min Exi Min Mat Robot Analysis Total . | . . . . . . Derelict Logs Recovered 1 | . . . . 1 . Drone Launches . | . . . . . . Drone Recoveries . | . . . . . . Exploration | -11 -10 -10 -10 -9 -8 ------------- Run | Yrd Mat Min Exi Min Mat Turns Passed 3087 | 139 190 143 516 795 1304 Spaces Moved 2084 | 85 127 105 424 641 702 Core 20 | 20 . . . . . Treads 22 | . . . . . 22 Legs 2042 | 65 127 105 424 641 680 Wheels . | . . . . . . Hover . | . . . . . . Flight . | . . . . . . Fastest Speed 50 | 50 120 120 120 120 120 Average Speed 124 | 103 120 120 120 120 134 Slowest Speed 260 | 120 120 120 120 120 260 Overloaded Moves . | . . . . . . Propulsion Burnouts . | . . . . . . Robots Hopped . | . . . . . . Cave-ins Triggered . | . . . . . . Exploration Rate (%) 50 | 7 19 31 89 100 56 Regions Visited 5 Branch Regions 3 Pre-discovered Areas 1 | . . . 1 . . Known Exits Taken . | . . . . . . Unknown Exits Taken 5 | 1 1 1 1 1 . Scrap Searched 2 | . . . . 2 . Spaces Dug . | . . . . . . Terrain Destroyed 194 | . 8 . . 15 171 Melee . | . . . . . . Projectile . | . . . . . . AOE 194 | . 8 . . 15 171 Terrain Rammed . | . . . . . . Walls Destroyed . | . . . . . . Machines Disabled . | . . . . . . Actions | -11 -10 -10 -10 -9 -8 --------- Run | Yrd Mat Min Exi Min Mat Total 2387 | 130 154 122 430 662 889 Wait 107 | 32 12 17 1 6 39 Move 2079 | 84 126 104 423 640 702 Hop . | . . . . . . Pick Up 25 | 6 4 1 2 5 7 Fast Attach 12 | . . . . 1 11 Attach 12 | 5 2 . . . 5 Detach . | . . . . . . Swap 23 | . 2 . 3 3 15 Drop 17 | . . . 1 4 12 Fire 112 | 3 8 . . 3 98 Melee . | . . . . . . Ram . | . . . . . . Kick . | . . . . . . Crush . | . . . . . . Escape Stasis . | . . . . . . Rewire . | . . . . . . Trap . | . . . . . . Miscellaneous . | . . . . . . Route ------- -11/Scrapyard -10/Materials -10/Mines (discovered 2 exits: [*Mat] / *Exi) -10/Exiles (discovered 2 exits: [*Min x2]) -9/Mines (discovered 2 exits: *Mat x2) -8/Materials (discovered 2 exits: [*Fac x2]) History --------- Turn | Location | Event 2 | -11/Scrapyard | Met Revision 17 84 | -11/Scrapyard | Discovered new exit (range 8) 140 | -11/Scrapyard | Entered Materials 266 | -10/Materials | Discovered new exit (range 15) 301 | -10/Materials | Met 8R-AWN 305 | -10/Materials | Build established: Mutant 330 | -10/Materials | Entered Mines 331 | -10/Mines | Followed 8R-AWN into the Mines 385 | -10/Mines | Met a Derelict bent on vengeance 401 | -10/Mines | Discovered new exit (range 11) 420 | -10/Mines | YI-UF0 nonchalantly dropped a Grenade Launcher on the ground 468 | -10/Mines | Discovered new exit (range 5) 473 | -10/Mines | Entered Exiles 492 | -10/Exiles | Discovered new exit (range 15) 507 | -10/Exiles | Welcomed by 8R-AWN 526 | -10/Exiles | Met EX-HEX 567 | -10/Exiles | Met EX-BIN 694 | -10/Exiles | Met EX-DEC 735 | -10/Exiles | Visited The Gauntlet 893 | -10/Exiles | Learned location of Zion (-7) 978 | -10/Exiles | Discovered new exit (range 11) 989 | -10/Exiles | Entered Mines 1024 | -9/Mines | Learned Materials interactive machine intel 1029 | -9/Mines | Discovered new exit (range 12) 1419 | -9/Mines | Discovered new exit (range 8) 1565 | -9/Mines | Found a hidden stash of uninstalled traps 1784 | -9/Mines | Entered Materials 1784 | -8/Materials | Evolved 4 slots: Propulsion x2, Utility x2 1785 | -8/Materials | Loaded intel: 19 interactive machine locations 2230 | -8/Materials | Discovered new exit (range 15) 2398 | -8/Materials | Lost 5 parts (1p2n1u1w) 2603 | -8/Materials | Discovered new exit (range 4) 2643 | -8/Materials | Repaired Aluminum Leg 2687 | -8/Materials | Garrison activated, responded to threat 2711 | -8/Materials | Build established: Scavenger-Mutant 3052 | -8/Materials | Core integrity fell below 50% 3088 | -8/Materials | Self-destructed Last Messages --------------- K-01 Serf collects debris. C-30 ARC bursts open, deploying its payload. S-10 Pest unfolds itself. S-10 Pest destroyed. Imp. Grenade Launcher destroyed. S-10 Pest destroyed. Y-45 Defender suffers critical hit (Burn). System corrupted: IFF burst signal emitted. Hvy. Assault Rifle destroyed. Y-45 Defender suffers critical hit (Burn). Lgt. Treads melted. Unknown Device melted. Y-45 Defender destroyed. Acquired 22 matter. Titanium Leg destroyed. Aluminum Leg destroyed. S-10 Pest destroyed. Aluminum Leg destroyed. Critical hit (Burn: +37). G-47 Trooper destroyed. Map ----- +----------------------------------------------------+ | | | | | | | | | | | | | | | ?????????????????????????????????????????????????? | | ?????????????????????????????????????????????????? | | ?????????????????????????????????????????????????? | | ?????????????????????????????????????????????????? | | ?????????????????????????????????????????????????? | | ?????????????????????????????????????????????????? | | ?????????????"S??????????????????????????????????? | | ?????????????"""?????????????????????????????????? | | ??????????????""?????????????????????????????????? | | ?????????????????????????????????????????????"T"?? | | ?????????????????????????????????????????????????? | | ??????????????????##################?????????????? | | ?????????????????? % ??????????????? | | ??????????????????? *=[ ????????????????? | | ???????????????????=*=?? =%% ?????????????????? | | ???????????????#####+##### =%###?????????????????? | | ???????????????# % # #?????????????????? | | ???????????????# T # !###?????????????????? | | ???????????????# [@* %[ #?????????????????? | | ???????????????# # ##?????????????????? | | ???????????????# !! ### ##??????????????????? | | ???????????????# !! #?# #???????????????????? | | ???????????????# #?#*#????####???????????? | | ????T??????????# #?#=#??? #???????????? | | ???????????????###########?#%#??? #???????????? | | ??????????????###### ###???#=#?? #???????????? | | ??????????????# #### #?? #???????????? | | ?????????????## "" """# ## #???????????? | | ????????????##""" " # #???????????? | | ????????? " = #?????????### | | ?????????????##"" # # #?????????#^ | | ????????T "# / + #?????????# | | ???????????""" " # # #??######?# | | ????????????"" " #[ # #?##!!!!###^ | | ????????????"" " # # #?#! !## | | ???????????? # " =%# #?# ## | | ???????????""??# """"## !##########* ## | | ?????????????############ %% ![%[* | | ?????????????+ !% % =*[[ | | ????????????????######### = | | #????????????###????????##+###############+##### | | #???????????? #???????????????????????? ?? | | #???????????? #?????????????????????? # " | +----------------------------------------------------+ Best States ------------- Heat Dissipation 31 Coolant Potential 65 Energy Generation 14 Energy Capacity 240 Matter Stores 300 Matter Capacity 500 Sight Range 16 Terrain Scan Density 10 Armor Coverage 150 Resistance: KI 20 Resistance: TH 20 Resistance: EX 20 Resistance: EM 20 Resistance: I 20 Resistance: S 20 Resistance: P 20 Core Shielding 20 Power Shielding 66 Evasion (%) 55 Targeting Accuracy 6 Recoil Reduction 1 Offensive Hacking 10 Item Schematics ----------------- None Robot Schematics ------------------ None Fabricated ------------ Nothing Alien Tech Used ----------------- None Achievements -------------- It's Just You Librarian Loot Pinata Risk Taker Tourist Troublemaker Uninvited Guest Challenges ------------ None Game ------ Seed SuperdenseCannonShotgun Manual? 0 Play Time 00:41:23 Cumulative 0.6 hours Start 2025.03.14 @ 22:28:23 End 2025.03.15 @ 13:08:09 Sessions 3 Manual Loads 0 Difficulty Adventurer Special Mode None Game No. 1 Rogue 0 Adventurer 1 Explorer 0 Win Type - Total 0 Types 0/0/0/0/0/0/0/0/0 Lore% 2 Gallery% 3 Achievement% 3 Wizard Run 0 Options --------- Layout 2 ASCII 0 Keyboard 0 Movement Numpad Keybinds 0 Fullscreen 0 Font 28/X11 Map View 90x48 Zoom Use 0% Tactical HUD 0 Map Filters NONE Filters NONE Steam 1 RUN: 532bba92-821f-4ec5-9d65-88da40199644